Cogmind - Beta 16 --- EXPLORER MODE // 2026.01.22 @ 09:53:57 Player: K.K.Y. Result: Destroyed by H-61 Shepherd with Heavy Assault Cannon Performance ------------- Evolutions (4) 2000 Regions Visited (6) 1200 Robots Destroyed (85) 425 Value Destroyed (2574) 2574 Prototype IDs (14) 280 Alien Tech Used (0) 0 Bonus (1841) 1841 TOTAL SCORE: 8320 Bonus ------- Delivered SUBCON Basin 2000 Friendly Fire -159 Cogmind --------- Core Integrity 0/850 Matter 294/300 Energy 25/100 System Corruption 0% Temperature Cool (0) Movement Core (50) Location -6/Factory Parts ------- > --- POWER (2) -------- (None) > --- PROPULSION (4) --- (None) > --- UTILITY (8) ------ (None) > --- WEAPON (2) ------- (None) > --- INVENTORY (5) ---- Light Humpback Experimental Sensor Array Tech Extrapolator Multitool Peak State ------------ > --- POWER ------------ Angular Momentum Engine Light Angular Momentum Engine > --- PROPULSION ------- Advanced Treads Advanced Treads Improved Medium Treads > --- UTILITY ---------- Power Amplifier Improved Heat Sink Advanced Heat Sink Huge Storage Unit Gravity Neutralizer Improved Medium Armor Plating Improved Medium Armor Plating EM Shield > --- WEAPON ----------- Advanced Assault Cannon Heavy Flak Cannon > --- INVENTORY -------- Light Angular Momentum Engine Light Angular Momentum Engine Scrap Suit Improved Heat Sink Improved Heat Sink High-capacity Storage Unit Light Humpback Matter Compressor Structural Scanner Machine Analyzer Experimental Sensor Array Advanced Signal Interpreter IFF Parser Improved Terrain Scanner Improved Medium Armor Plating Makeshift Light Armor Plating Authchip [Storage] Authchip [Armor] Tech Extrapolator Gatling Laser Plasma Cannon Plasma Cutter Multitool [Rating: 72] Favorites ----------- Power Makeshift Power Source Engine Makeshift Power Source Propulsion Light Treads Treads Light Treads Leg Makeshift Leg Flight Unit Surge Thruster Utility Improved Heat Sink Device Improved Heat Sink Storage High-capacity Storage Unit Processor Machine Analyzer Protection Makeshift Light Armor Plating Weapon Barrage Gun Energy Gun Particle Gun Energy Cannon Plasma Cannon Ballistic Gun Barrage Gun Ballistic Cannon Advanced Assault Cannon Special Weapon Mining Laser Build | -11 -10 -10 -10 -8 -8 -6 ------- Run | Yrd Mat Min Sub Rec Scr Fac Slots Evolved 9 | . 1 . . . . 8 Power 1 | . . . . . . 1 Propulsion 2 | . . . . . . 2 Utility 6 | . 1 . . . . 5 Weapon . | . . . . . . . Parts Attached 68 | 6 4 3 16 2 6 31 Power 7 | 1 . . 2 . . 4 Engine 7 | 1 . . 2 . . 4 Core . | . . . . . . . Reactor . | . . . . . . . Propulsion 14 | 2 . 2 4 2 2 2 Treads 9 | 2 . 2 2 . 2 1 Leg 4 | . . . 2 2 . . Wheel . | . . . . . . . Hover . | . . . . . . . Flight 1 | . . . . . . 1 Utility 31 | 1 2 1 5 . 2 20 Device 15 | . 1 . 1 . 1 12 Storage 6 | 1 . 1 2 . 1 1 Processor 4 | . . . . . . 4 Hackware . | . . . . . . . Protection 6 | . 1 . 2 . . 3 Artifact . | . . . . . . . Weapon 16 | 2 2 . 5 . 2 5 Energy Gun 7 | 2 1 . 2 . . 2 Energy Cannon 1 | . . . . . . 1 Ballistic Gun 3 | . . . 2 . . 1 Ballistic Cannon 3 | . . . 1 . 2 . Launcher . | . . . . . . . Special Weapon 2 | . 1 . . . . 1 Impact Weapon . | . . . . . . . Slashing Weapon . | . . . . . . . Piercing Weapon . | . . . . . . . Special Melee Weapon . | . . . . . . . Unidentified Prototypes 2 | . . . . . . 2 Parts Lost 27 | . . . 3 . . 24 Power 2 | . . . . . . 2 Propulsion 5 | . . . 1 . . 4 Utility 14 | . . . 1 . . 13 Weapon 6 | . . . 1 . . 5 Highest Loss Streak 17 | . . . 1 . . 17 To Critical Strikes 1 | . . . . . . 1 Average Backups 15 | 1 5 11 17 10 21 20 Power . | . . . . . 1 1 Propulsion . | . . . . . 1 . Utility 10 | . 3 8 10 8 14 15 Weapon 3 | . 1 2 5 . 2 1 Tool/Special . | . . . . . . . Unused Backups 22 | . . . 9 . 3 10 Power 3 | . . . . . . 3 Propulsion 1 | . . . . . 1 . Utility 9 | . . . 2 . 1 6 Weapon 8 | . . . 7 . 1 . Tool/Special 1 | . . . . . . 1 Average Slot Usage (%) 91 | . 92 100 95 84 99 65 Engine 11 | . 12 12 12 12 12 9 Treads 12 | . 25 25 10 . 12 13 Leg 9 | . . . 11 23 12 . Device 12 | . 9 12 15 . 11 16 Storage 11 | . 12 12 12 12 12 5 Protection 9 | . 7 12 7 11 12 7 Energy Gun 11 | . 24 25 10 12 6 . Ballistic Gun 6 | . . . 9 12 6 . Ballistic Cannon 4 | . . . 3 . 11 9 Peak Build Rating 72 | 6 12 14 41 44 37 72 Average Rating 27 | 5 10 13 23 34 34 49 On Entrance 19 | . 6 12 14 41 27 37 Avg Prop Armor Cover (%) . | . . . . . . . Naked Turns 18 | . . . . . . 18 Heaviest Build 145 | 18 24 54 56 54 110 145 Greatest Support 74 | 40 40 40 40 37 44 74 Greatest Overweight (x) 4 | . . 1 2 2 2 4 Average Overweight (x) 1 | . . . 1 1 1 . Largest Inventory Capacity 25 | 10 10 20 25 25 25 25 Average Capacity 20 | 9 10 16 20 22 23 22 Most Carried 25 | 5 10 13 25 25 25 25 Average Carried 18 | 1 5 11 19 19 23 22 Final Capacity 25 | 10 10 20 25 20 25 5 Final Carried 25 | 2 10 13 25 17 25 5 Scrap Suit Usage (%) 1 | . . . . . . 1 Class Distribution -------------------- 65% | Hacker-Mutant 22% | Derelict-Mutant 12% | Scavenger-Mutant Dominant Class ---------------- Hacker-Mutant | -10/Materials Hacker-Mutant | -10/Mines Hacker-Mutant | -10/Subcaves Derelict-Mutant | -8/Recycling Derelict-Mutant | -8/Scraptown Hacker-Mutant | -6/Factory Resources | -11 -10 -10 -10 -8 -8 -6 ----------- Run | Yrd Mat Min Sub Rec Scr Fac Matter Collected 2201 | 260 50 30 710 84 227 840 Remotely . | . . . . . . . Salvage Created 2790 | 174 538 227 692 234 . 925 Parts 162 | 8 36 9 51 18 . 40 Haulers Intercepted 3 | . 2 . . . . 1 Recyclers Shooed 2 | . 1 . . . . 1 Parts Field Recycled . | . . . . . . . Retrieved Matter . | . . . . . . . Parts Self-Destructed . | . . . . . . . Prevented . | . . . . . . . Parts Restored . | . . . . . . . Kills | -11 -10 -10 -10 -8 -8 -6 ------- Run | Yrd Mat Min Sub Rec Scr Fac Combat Hostiles Destroyed 63 | . 11 6 16 4 . 26 Guns 36 | . 11 6 12 4 . 3 Cannons 26 | . . . 4 . . 22 Classes Destroyed 20 | 2 6 . 5 . . 7 Worker 1 | . . . . . . 1 Builder 2 | . 1 . . . . 1 Tunneler 4 | 4 . . . . . . Hauler 3 | . 2 . . . . 1 Recycler 4 | 1 1 1 . . . 1 Mechanic 2 | . 1 . . . . 1 Turret 2 | . . . 2 . . . Watcher 2 | . 2 . . . . . Swarmer 15 | . 5 4 4 . . 2 Cutter 2 | . . . . . . 2 Saboteur 1 | . . . . . . 1 Grunt 21 | . 6 2 2 . . 11 Brawler 1 | . . . . . . 1 Sentry 6 | . . . 1 4 . 1 Specialist 2 | . . . . . . 2 Hunter 2 | . . . . . . 2 Programmer 4 | . . . . . . 4 Artisan 2 | . . . 2 . . . Subdweller 9 | . . . 9 . . . Zionite 2 | . . . 2 . . . Best Kill Streak 8 | 2 5 3 3 2 . 8 Combat Bots Only 5 | . 5 2 3 2 . 4 Max Kills in Single Turn 2 | 1 2 2 1 1 . 2 Gunslinging 1 | . 1 . . . . . Exploded . | . . . . . . . Melee . | . . . . . . . Uniques/NPCs Destroyed . | . . . . . . . Combat | -11 -10 -10 -10 -8 -8 -6 -------- Run | Yrd Mat Min Sub Rec Scr Fac Hostile Shots Fired 826 | . 33 13 143 14 . 623 Missed 284 | . 15 4 62 . . 203 Hits 542 | . 18 9 81 14 . 420 Melee 18 | . . . . . . 18 Projectile 524 | . 18 9 81 14 . 402 AOE 2 | . . . . . . 2 Critical Strikes 21 | . 1 . . 2 . 18 Part Disruptions 1 | . . . . . . 1 Damage Taken 4318 | . 154 53 733 128 . 3250 Core 1020 | . 13 9 113 18 . 867 Absorbed by Shields 224 | . . . . . . 224 Ignored by Resistances 2862 | . 102 35 449 77 . 2199 Regen/Repaired (Parts) 22 | . . . . . . 22 Core Remaining (%) 69 | 100 . . . . 38 . Volleys Fired 272 | 14 31 9 124 11 . 83 Largest 2 | 2 2 2 2 2 . 2 Hottest 160 | 90 150 115 156 78 . 160 Shots Fired 521 | 28 62 18 246 22 . 145 Gun 347 | 28 61 18 202 22 . 16 Cannon 147 | . . . 22 . . 125 Launcher . | . . . . . . . Special 27 | . 1 . 22 . . 4 Kinetic 256 | . . . 125 11 . 120 Thermal 247 | 28 62 18 119 . . 20 Explosive . | . . . . . . . Electromagnetic 18 | . . . 2 11 . 5 Robot Hit Streak 64 | 16 15 9 54 19 . 64 Robot Miss Streak 5 | 2 2 2 2 2 . 5 Penetration Max . | . . . . . . . Secondary Targets 3 | . 2 . 1 . . . Max Gunslinging Chain 1 | . 1 . 1 . . . Shots Hit Robots 355 | 24 49 11 129 17 . 125 Core Hits 208 | 6 28 10 37 8 . 119 Critical Kills 1 | . . . 1 . . . Critical Parts Destroyed 1 | . . . 1 . . . Critical Strikes 18 | 2 3 3 7 . . 3 Burn 12 | 2 3 3 4 . . . Destroy 3 | . . . 3 . . . Blast 3 | . . . . . . 3 Melee Attacks . | . . . . . . . Impact . | . . . . . . . Slashing . | . . . . . . . Piercing . | . . . . . . . Sneak Attacks . | . . . . . . . Combat Hostiles . | . . . . . . . Follow-up Attacks . | . . . . . . . Damage Inflicted 6862 | 283 655 168 1807 325 . 3624 Guns 3358 | 283 655 168 1514 325 . 413 Cannons 3353 | . . . 197 . . 3156 Explosions . | . . . . . . . Melee . | . . . . . . . Ramming 10 | . . . . . . 10 Kinetic 4059 | . . . 901 124 . 3034 Thermal 2514 | 283 655 168 877 . . 531 Explosive . | . . . . . . . Electromagnetic 279 | . . . 29 201 . 49 Impact . | . . . . . . . Slashing . | . . . . . . . Piercing . | . . . . . . . Highest Corruption . | . . . . . . . Average Corruption . | . . . . . . . Corruption Purged . | . . . . . . . Corruption Blocked 1 | . . . . . . 1 Overload Shots . | . . . . . . . Overflow Damage 5 | . . . . . . 5 Projectiles 5 | . . . . . . 5 Explosions . | . . . . . . . Melee . | . . . . . . . Knockbacks 28 | . . . 1 . . 27 Impact . | . . . . . . . Kinetic 27 | . . . 1 . . 26 Secondary 1 | . . . . . . 1 Self-Inflicted Damage 1 | . . . . . . 1 Shots . | . . . . . . . Rammed 6 | . . . . . . 6 Targets Rammed 6 | . . . . . . 6 Kicked . | . . . . . . . Crushed . | . . . . . . . Highest Temperature 469 | 136 120 81 18 284 . 469 Average Temperature 90 | 56 30 32 8 111 . 158 Received Heat Transfer 2212 | . 96 33 306 99 . 1678 Effects 5 | . . . . . . 5 Shutdowns 2 | . . . . . . 2 Interference 3 | . . . . . . 3 Siege Activations . | . . . . . . . Martial Activations . | . . . . . . . Shielding Activations . | . . . . . . . Robots Disrupted . | . . . . . . . Combat Hostiles . | . . . . . . . Robots Corrupted . | . . . . . . . Combat Hostiles . | . . . . . . . Parts Fried 1 | . . . . 1 . . Impact Corruptions . | . . . . . . . Robots Melted 1 | . . . . . . 1 Combat Hostiles 1 | . . . . . . 1 Parts Melted 20 | 2 7 3 4 . . 4 Heat Transferred 7226 | 904 1939 666 2494 . . 1223 Parts Sabotaged . | . . . . . . . Parts Stolen . | . . . . . . . Parts Stripped . | . . . . . . . Power Chain Reactions . | . . . . . . . Alert | -11 -10 -10 -10 -8 -8 -6 ------- Run | Yrd Mat Min Sub Rec Scr Fac Maximum Alert Level . | . . . . . . . Low Security (%) 100 | 100 100 100 . 100 . 100 Level 1 . | . . . . . . . Level 2 . | . . . . . . . Level 3 . | . . . . . . . Level 4 . | . . . . . . . Level 5 . | . . . . . . . High Security . | . . . . . . . Max Security . | . . . . . . . Peak Influence 119 | 10 119 50 . 40 . 102 Initial . | . . . . . . . Average 9 | 1 24 2 . 1 . 20 Influence Increases 1693 | 25 359 155 295 83 . 776 Destroy 0b10 Robot/C 1120 | . 220 120 180 80 . 520 Destroy 0b10 Robot/NC 90 | 25 35 5 . . . 25 Destroy Leader 230 | . 58 30 10 . . 132 Successful Hack 36 | . 30 . . 3 . 3 Destroy Structure 7 | . 1 . . . . 6 Partial Spotted 45 | . . . . . . 45 Lose Combat Pursuer 165 | . 15 . 105 . . 45 Influence Decreases 1678 | 25 359 155 295 83 . 761 Time Decay 1526 | 25 359 155 295 83 . 609 Lost Part 152 | . . . . . . 152 Squads Dispatched 15 | . 3 . . . . 12 Investigation 4 | . 3 . . . . 1 Extermination 3 | . . . . . . 3 Reinforcement 5 | . . . . . . 5 Assault . | . . . . . . . Garrison 3 | . . . . . . 3 Intercept . | . . . . . . . Searches Triggered . | . . . . . . . Construction Impeded 1 | . . . . . . 1 Haulers Reinforced 1 | . . . . . . 1 Active Scanning Responses . | . . . . . . . Cargo Convoy Interrupts 1 | . . . . . . 1 Stealth | -11 -10 -10 -10 -8 -8 -6 --------- Run | Yrd Mat Min Sub Rec Scr Fac Distress Signals 3 | . 2 . . . . 1 Communications Jammed . | . . . . . . . Distress Signals . | . . . . . . . Times Spotted 84 | . 17 6 19 4 . 38 Peak Tracking Total 7 | . 4 2 6 2 . 7 Tactical Retreats 8 | . 1 . 4 . . 3 Traps | -11 -10 -10 -10 -8 -8 -6 ------- Run | Yrd Mat Min Sub Rec Scr Fac Traps Triggered 4 | . 2 . 1 . . 1 Indirectly . | . . . . . . . Trap Hack Attempts . | . . . . . . . Triggered . | . . . . . . . Disarmed . | . . . . . . . Reprogrammed . | . . . . . . . Reused . | . . . . . . . Traps Extracted . | . . . . . . . Installed . | . . . . . . . Triggered . | . . . . . . . Machines | -11 -10 -10 -10 -8 -8 -6 ---------- Run | Yrd Mat Min Sub Rec Scr Fac Machines Disabled 2 | . . . 2 . . . Max in Single Turn 1 | . . . 1 . . . Machines Repaired . | . . . . . . . Machines Dismantled . | . . . . . . . Machines Sabotaged . | . . . . . . . Overloaded Fab Kills . | . . . . . . . Hacking | -11 -10 -10 -10 -8 -8 -6 --------- Run | Yrd Mat Min Sub Rec Scr Fac Machines Accessed 23 | . 7 1 3 9 . 3 Terminals 14 | . 6 1 . 6 . 1 Fabricators . | . . . . . . . Repair Stations 1 | . . . . . . 1 Recycling Units 5 | . 1 . . 3 . 1 Scanalyzers . | . . . . . . . Garrison Access . | . . . . . . . Total Hacks 54 | . 20 2 4 22 . 6 Successful 25 | . 8 1 4 9 . 3 Failed 29 | . 12 1 . 13 . 3 Catastrophic 4 | . 3 . . . . 1 Database Lockouts . | . . . . . . . Manual 30 | . 24 2 . 3 . 1 Terminals 37 | . 18 2 . 16 . 1 Fabricators . | . . . . . . . Repair Stations 2 | . . . . . . 2 Recycling Units 11 | . 2 . . 6 . 3 Scanalyzers . | . . . . . . . Garrison Access . | . . . . . . . Terminal Hacks 15 | . 7 1 4 3 . . Record 1 | . . . 1 . . . Part Schematic 7 | . 4 1 . 2 . . Robot Schematic 4 | . 3 . . 1 . . Open Door 1 | . . . 1 . . . Proto ID Catalog 1 | . . . 1 . . . Release Object 1 | . . . 1 . . . Fabricator Hacks . | . . . . . . . Repair Station Hacks 2 | . . . . . . 2 Scan Component 1 | . . . . . . 1 Repair 1 | . . . . . . 1 Recycling Unit Hacks 4 | . 1 . . 3 . . Retrieve Components 4 | . 1 . . 3 . . Scanalyzer . | . . . . . . . Garrison Access Hacks . | . . . . . . . Unauthorized Hacks 4 | . . . . 3 . 1 Terminals 4 | . . . . 3 . 1 Botnet 4 | . . . . 3 . 1 Fabricators . | . . . . . . . Repair Stations . | . . . . . . . Recycling Units . | . . . . . . . Scanalyzers . | . . . . . . . Garrison Access . | . . . . . . . Data Cores Recovered . | . . . . . . . Used . | . . . . . . . Hacking Detections 16 | . 8 1 . 6 . 1 Full Trace Events 9 | . 4 . . 4 . 1 Feedback Events . | . . . . . . . Feedback Blocked . | . . . . . . . Robot Schematics Acquired 4 | . 3 . . 1 . . Robots Built . | . . . . . . . Authchips . | . . . . . . . Time . | . . . . . . . Total Robot Build Rating . | . . . . . . . Part Schematics Acquired 7 | . 4 1 . 2 . . Parts Built . | . . . . . . . Authchips . | . . . . . . . Time . | . . . . . . . Total Part Build Rating . | . . . . . . . Part Studies Acquired . | . . . . . . . Parts Repaired 1 | . . . . . . 1 Time 50 | . . . . . . 50 Parts Recycled . | . . . . . . . Recycled Matter . | . . . . . . . Retrieved Matter . | . . . . . . . Retrieved Components 23 | . 10 . . 13 . . Parts Scanalyzed . | . . . . . . . Part Schematics Acquired . | . . . . . . . Parts Damaged . | . . . . . . . Bothacking | -11 -10 -10 -10 -8 -8 -6 ------------ Run | Yrd Mat Min Sub Rec Scr Fac Used RIF Installer . | . . . . . . . Robots Hacked . | . . . . . . . Non-combat . | . . . . . . . Combat . | . . . . . . . Robot Hacks Applied . | . . . . . . . Relay Couplers Released . | . . . . . . . Fabnet Peak Effective % . | . . . . . . . Robots Rewired . | . . . . . . . Allies Hacked . | . . . . . . . Hacks Repelled . | . . . . . . . Allies | -11 -10 -10 -10 -8 -8 -6 -------- Run | Yrd Mat Min Sub Rec Scr Fac Total Allies . | . . . . . . . Largest Group . | . . . . . . . Highest-Rated Group . | . . . . . . . Highest-Rated Ally . | . . . . . . . Total Orders . | . . . . . . . Ally Attacks . | . . . . . . . Total Damage . | . . . . . . . Kills . | . . . . . . . Allies Corrupted . | . . . . . . . Allies Melted . | . . . . . . . Intel | -11 -10 -10 -10 -8 -8 -6 ------- Run | Yrd Mat Min Sub Rec Scr Fac Active Infowar (turns) 2023 | . . . 1893 . . 130 IFF 74 | . . . . . . 74 Terrain 5 | . . . . . . 5 Structural 1977 | . . . 1893 . . 84 Machine Analysis 122 | . . . . . . 122 Robot Analysis Total . | . . . . . . . Derelict Logs Recovered 3 | . . 1 2 . . . Drone Launches . | . . . . . . . Drone Recoveries . | . . . . . . . Exploration | -11 -10 -10 -10 -8 -8 -6 ------------- Run | Yrd Mat Min Sub Rec Scr Fac Turns Passed 14346 | 140 853 2127 5312 1702 2586 1626 Spaces Moved 5755 | 65 451 970 1819 779 976 695 Core 287 | 17 . . . . . 270 Treads 2938 | 48 451 970 633 . 417 419 Legs 2524 | . . . 1186 779 559 . Wheels . | . . . . . . . Hover . | . . . . . . . Flight 6 | . . . . . . 6 Fastest Speed 32 | 50 160 160 210 200 205 32 Average Speed 217 | 131 160 207 239 212 261 165 Slowest Speed 480 | 160 160 240 280 280 305 480 Overloaded Moves 6 | . . . . . . 6 Propulsion Burnouts . | . . . . . . . Robots Hopped . | . . . . . . . Potential Cave-ins . | . . . . . . . Cave-ins Triggered . | . . . . . . . Exploration Rate (%) 60 | 5 74 99 80 99 51 15 Regions Visited 6 Branch Regions 4 Pre-discovered Areas 2 | . . 1 1 . . . Known Exits Taken 6 | 1 1 1 1 1 1 . Unknown Exits Taken . | . . . . . . . Scrap Searched 22 | . . 1 17 . 4 . Spaces Dug 4 | . 1 . 3 . . . Terrain Destroyed 11 | . 1 . 4 . . 6 Melee . | . . . . . . . Projectile 11 | . 1 . 4 . . 6 AOE . | . . . . . . . Terrain Rammed . | . . . . . . . Walls Destroyed . | . . . . . . . Machines Disabled . | . . . . . . . Actions | -11 -10 -10 -10 -8 -8 -6 --------- Run | Yrd Mat Min Sub Rec Scr Fac Total 6965 | 91 518 1066 2506 802 1021 961 Wait 726 | . 20 79 497 . 14 116 Move 5749 | 64 450 969 1818 778 975 695 Hop . | . . . . . . . Pick Up 69 | 7 11 4 18 6 17 6 Fast Attach 21 | 1 . . 3 1 1 15 Attach 34 | 5 2 . 4 1 4 18 Detach 6 | . . . 3 1 . 2 Swap 24 | . 3 3 13 2 1 2 Drop 58 | . 1 2 26 2 9 18 Fire 272 | 14 31 9 124 11 . 83 Melee . | . . . . . . . Ram 5 | . . . . . . 5 Kick . | . . . . . . . Crush 1 | . . . . . . 1 Escape Stasis . | . . . . . . . Rewire . | . . . . . . . Trap . | . . . . . . . Miscellaneous . | . . . . . . . Route ------- -11/Scrapyard -10/Materials (discovered 4 exits: *Mat x2 / *Min x2) -10/Mines (discovered 3 exits: *Mat x2 / *Sub) -10/Subcaves (discovered 3 exits: *Mat x2 / *Rec) -8/Recycling (discovered 2 exits: *Fac / *Scr) -8/Scraptown -6/Factory History --------- Turn | Location | Event 4 | -11/Scrapyard | Identified exit to Materials 4 | -11/Scrapyard | Discovered exit to Materials (range 15) 141 | -11/Scrapyard | Entered Materials 141 | -10/Materials | Evolved 1 slot: Utility x1 161 | -10/Materials | Identified exit to Mines 161 | -10/Materials | Discovered exit to Mines (range 16) 313 | -10/Materials | Build established: Hacker-Mutant 329 | -10/Materials | Identified exit to Materials 329 | -10/Materials | Discovered exit to Materials (range 10) 833 | -10/Materials | Discovered exit to Materials (range 16) 876 | -10/Materials | Discovered exit to Mines (range 13) 994 | -10/Materials | Entered Mines 1007 | -10/Mines | Discovered exit to Materials (range 5) 1075 | -10/Mines | Deemed a non-threat by the Exiles lab entrance 1386 | -10/Mines | Found a damaged Exp. Sensor Array with a note attached 1394 | -10/Mines | Found Prototype Device 1406 | -10/Mines | Learned location of Storage (-8) 1406 | -10/Mines | Discovered exit to Materials (range 9) 1612 | -10/Mines | Found a Scrap Suit stashed away for nefarious purposes 1752 | -10/Mines | Found Scrap Suit 3109 | -10/Mines | Identified exit to Subcaves 3109 | -10/Mines | Discovered exit to Subcaves (range 6) 3121 | -10/Mines | Entered Subcaves 3122 | -10/Subcaves | Approached by a straggling Scientist 4108 | -10/Subcaves | Ambushed by angry Subdweller bent on revenge 4271 | -10/Subcaves | Learned Materials emergency access door positions 4389 | -10/Subcaves | Shifting Twisted Machinery released Sub. Power Source 4391 | -10/Subcaves | Shifting Twisted Machinery released Flamer 5212 | -10/Subcaves | Learned location of Zion (-6) 5212 | -10/Subcaves | Met a Zionite searching for "candidates" 5214 | -10/Subcaves | Learned Materials non-interactive machine intel 5566 | -10/Subcaves | Build established: Scavenger-Mutant 5740 | -10/Subcaves | Identified exit to Recycling 5740 | -10/Subcaves | Discovered exit to Recycling (range 11) 5895 | -10/Subcaves | Shifting Twisted Machinery released Lgt. Humpback 5906 | -10/Subcaves | Shifting Twisted Machinery released Flamer 5964 | -10/Subcaves | Identified exit to Materials 5964 | -10/Subcaves | Discovered exit to Materials (range 7) 5971 | -10/Subcaves | A swath of the cavern ceiling suddenly collapsed 6239 | -10/Subcaves | Discovered exit to Materials (range 15) 6268 | -10/Subcaves | A swath of the cavern ceiling suddenly collapsed 6377 | -10/Subcaves | Disturbed a concealed Subdweller 6985 | -10/Subcaves | Core integrity fell below 50% 7198 | -10/Subcaves | Shifting Twisted Machinery released Sub. Machine Gun 7217 | -10/Subcaves | Shifting Twisted Machinery released Sub. Monowheel 7284 | -10/Subcaves | Build established: Hacker-Mutant 7492 | -10/Subcaves | Visited 4L-MR0's lab 8107 | -10/Subcaves | Found SUBCON Basin 8394 | -10/Subcaves | Build established: Derelict-Mutant 8433 | -10/Subcaves | Entered Recycling 9234 | -8/Recycling | Scanned before Scraplab entrance 9265 | -8/Recycling | Entered Scraplab 9482 | -8/Recycling | Identified exit to Factory 9482 | -8/Recycling | Discovered exit to Factory (range 8) 10131 | -8/Recycling | Identified exit to Scraptown 10131 | -8/Recycling | Discovered exit to Scraptown (range 3) 10135 | -8/Recycling | Entered Scraptown 10422 | -8/Scraptown | Visited Junk Repository 10495 | -8/Scraptown | Visited Comm Corps 10523 | -8/Scraptown | Visited Fellowship of the Rings 10540 | -8/Scraptown | Visited The Evicted 10577 | -8/Scraptown | Visited Awakened 10622 | -8/Scraptown | Visited Assassins FH 10737 | -8/Scraptown | Discovered exit to Factory (range 13) 11785 | -8/Scraptown | Build established: Hacker-Mutant 12721 | -8/Scraptown | Entered Factory 12721 | -6/Factory | Evolved 8 slots: Power x1, Propulsion x2, Utility x5 13871 | -6/Factory | Garrison activated, responded to threat 13872 | -6/Factory | Cargo convoy interrupted 13942 | -6/Factory | Lost 4 parts (2n2u) 14040 | -6/Factory | Repaired EM Shield 14199 | -6/Factory | Lost 17 parts (2p1n9u5w) 14250 | -6/Factory | Core integrity fell below 50% 14337 | -6/Factory | Core integrity fell below 20% 14347 | -6/Factory | Destroyed by H-61 Shepherd with Heavy Assault Cannon Last Messages --------------- 14340_ Surge Thruster destroyed. 14340_ U-05 Engineer lays Concrete. 14340_ R-10 Processor collects Blade Saw. 14340_ U-05 Engineer lays Concrete. 14341_ Acquired Corruption Screen. 14342_ U-05 Engineer lays Concrete. 14342_ Corruption Screen severed. 14342_ Knocked back. 14342_ Slammed into C-17 Slicer. 14343_ U-05 Engineer lays Concrete. 14343_ R-10 Processor collects Sml. Matter Pod. 14343_ Corruption Screen intercepted 1% system corruption. 14344_ U-05 Engineer lays Concrete. 14344_ Corruption Screen destroyed. 14345_ U-05 Engineer lays Concrete. 14345_ Acquired 20 matter. 14346_ U-05 Engineer lays Concrete. 14346_ R-10 Processor collects Lgt. Ion Engine. 14346_ U-05 Engineer lays Concrete. Map ----- +----------------------------------------------------+ | ??????????????????##""" ### "Y | | ??????????????????##""" # ## """ | | ??????????????????##""" ## | | ??????????????????## ## ##### | | ??????????????????## ## ###?# ! | | ??????????????????####### # ## ##??# ! | | ??????????????????####### #### ##??# ! | | ???????????????????????### #### ##### | | ???????????????????????### ####+##+##### % | | ???????????????????####?## ### ########% | | ???????????????????####?## ### """""" ##????## | | ??????????????????? #### + """""" ##????## | | ???????????????????? ########## """""" ##?????# | | ?????? ########## """""" ##?????# | | ??????############### ##??????## ##?????# | | ??????## ! # #####???## ! ##????## | | ??????## # ########## ######## | | ??????## # #T #############+########## | | ??????## # | | ??"""?## """ """ # ^ | | ???R"?## """ """ """"" | | ??"""?## """ """ # """""" | | ??????## # Y """""" | | ""????## """ """ ### ## ########## """""" | | ""????## """ """ ##### p ##### | | ""????## """ """ #####@%R ##??# """""" | | ??????# ##?## % ##### """""" | | ??????################?## %R= + """""" | | ???????????###########?## c H;#??# """""" | | ???????????????????????## % ##??# ^ | | ???????????????????????## % ##??# """""" | | ???????????????????????## ]! ##??? """""" | | ???????????????????????## ]! #???? """""" | | ???????????????????????## !! #???? """""" | | ????????????????????????# #???????? | | ????????????????????????# #????????? | | ????????????????????????##############???????? ### | | ?????????????????????????????????????????????????# | | ?????????????????????????????????????????????????? | | ?????????????????????????????????????????????????? | | ???????????????????????????????????????""""??????? | | ???????????????????????????????????????""""??????? | | ???????????????????????????????????????""""??????? | | ???????????????????????????????????????""""??????? | | ???????????????????????????????????????""""??????? | | ???????????????????????????????????????""""??????? | | ?????????????????????????????????????????????????? | | ?????????????????????????????????????????????????? | | ?????????????????????????????????????????????????? | | ?????????????????????????????????????????????????? | +----------------------------------------------------+ Best States ------------- Heat Dissipation 70 Energy Generation 36 Energy Capacity 370 Matter Stores 323 Matter Capacity 550 Sight Range 16 Terrain Scan Density 10 Power Amplification 20 Corruption Block 8 Armor Coverage 550 Resistance: KI 35 Resistance: TH 35 Resistance: EX 35 Resistance: EM 60 Resistance: I 35 Resistance: S 35 Resistance: P 35 Evasion (%) 50 Recoil Reduction 3 Offensive Hacking 20 Authchip Count 2 Item Schematics ----------------- Huge Storage Unit | -10/Materials | Hacked Cargo Storage Unit | -10/Materials | Hacked Transport Network Coupler | -10/Materials | Hacked ECM Suite | -10/Materials | Hacked Ion Engine | -10/Mines | Hacked Imp. Surge Thruster | -8/Recycling | Hacked Imp. Heat Sink | -8/Recycling | Hacked Robot Schematics ------------------ G-34 Mercenary | -10/Materials | Hacked W-16 Scout | -10/Materials | Hacked S-10 Pest | -10/Materials | Hacked G-47 Trooper | -8/Recycling | Hacked Fabricated ------------ Nothing Repaired ---------- EM Shield | 18% | -6/Factory Studied --------- None Alien Tech Used ----------------- None Achievements -------------- None Challenges ------------ None Game ------ Seed ArcsightMassTurbovents Manual? 0 Play Time 00:49:36 Cumulative 300.7 hours Start 2026.01.22 @ 09:07:15 End 2026.01.22 @ 09:53:57 Sessions 1 Manual Loads 0 Difficulty Explorer Special Mode None Game No. 466 Rogue 0 Adventurer 0 Explorer 466 Win Type - Total 0 Types 0/0/0/0/0/0/0/0/0/0 Lore% 76 Gallery% 70 Achievement% 55 Wizard Run 0 Options --------- Layout 1 ASCII 0 Keyboard 0 Movement Mouse Keybinds 1 Fullscreen 1 Font 24/Smallcaps Map View 50x35 Zoom Use 0% Tactical HUD 1 Map Filters NONE Filters NONE Steam 1 RUN: c81c3c15-6e48-4cdf-8950-01395687bc2d